fUSD/lending_fUSD_20240701
["ID","MTS","AMOUNT","RATE_DAILY","PERIOD"]
[330809124,1719815441822,-154.86627899,0.00022404,2]
[330809125,1719815441831,-800.0,0.00022466,2]
[330809126,1719815441841,-156.023375,0.00022466,2]
[330809127,1719815441850,-500.0,0.00022479,4]
[330809128,1719815441860,-825.01,0.00022479,4]
[330809129,1719815441869,-293.6979559,0.00022485,2]
[330809130,1719815441879,-263.7123308,0.00022485,2]
[330809131,1719815441888,-233.7267057,0.00022485,2]
[330809132,1719815441897,-203.7410806,0.00022485,2]
[330809133,1719815441906,-173.7554554,0.00022485,2]
[330809134,1719815441915,-2013.87,0.00022488,4]
[330809135,1719815441925,-500.0,0.00022489,4]
[330809136,1719815441934,-825.01,0.00022489,4]
[330809137,1719815441945,-359.00355098,0.00022492,2]
[330809138,1719815441954,-2607.03,0.00022498,4]
[330809139,1719815441963,-2607.03,0.00022498,4]
[330809140,1719815441972,-2753.87,0.00022498,4]
[330809141,1719815441983,-2753.87,0.00022498,4]
[330809142,1719815441992,-2082.7,0.00022498,4]
[330809143,1719815442003,-2013.87,0.00022498,4]
[330809144,1719815442012,-2013.87,0.00022498,4]
[330809145,1719815442021,-241.11743657,0.00022499,2]
[330809146,1719815442032,-779.34392314,0.00022499,2]
[330809147,1719815442041,-816.02,0.00022499,4]
[330809148,1719815442050,-816.02,0.00022499,4]
[330809149,1719815442060,-816.02,0.00022499,4]
[330809150,1719815442069,-816.02,0.00022499,4]
[330809151,1719815442078,-816.02,0.00022499,4]
[330809152,1719815442087,-816.02,0.00022499,4]
[330809153,1719815442096,-816.02,0.00022499,4]
[330809154,1719815442106,-816.02,0.00022499,4]
[330809155,1719815442115,-816.02,0.00022499,4]
[330809156,1719815442124,-816.02,0.00022499,4]
[330809157,1719815442133,-816.02,0.00022499,4]
[330809158,1719815442143,-816.02,0.00022499,4]
[330809159,1719815442152,-816.02,0.00022499,4]
[330809160,1719815442161,-816.02,0.00022499,4]
[330809161,1719815442171,-816.02,0.00022499,4]
[330809162,1719815442179,-816.02,0.00022499,4]
[330809163,1719815442188,-816.02,0.00022499,4]
[330809164,1719815442197,-816.19,0.00022499,4]
[330809165,1719815442207,-3678.63,0.00022499,4]
[330809166,1719815442216,-3678.63,0.00022499,4]
[330809167,1719815442226,-3678.63,0.00022499,4]
[330809168,1719815442235,-3678.63,0.00022499,4]
[330809169,1719815442244,-3678.63,0.00022499,4]
[330809170,1719815442253,-3678.63,0.00022499,4]
[330809171,1719815442262,-3678.63,0.00022499,4]
[330809172,1719815442271,-3678.63,0.00022499,4]
[330809173,1719815442281,-3678.63,0.00022499,4]
[330809174,1719815442290,-3678.63,0.00022499,4]
[330809175,1719815442299,-3678.63,0.00022499,4]
[330809176,1719815442308,-3678.63,0.00022499,4]
[330809177,1719815442318,-3678.63,0.00022499,4]
[330809178,1719815442327,-3678.63,0.00022499,4]
[330809179,1719815442336,-3678.63,0.00022499,4]
[330809180,1719815442345,-3678.63,0.00022499,4]
[330809181,1719815442355,-3678.63,0.00022499,4]
[330809182,1719815442364,-3678.72,0.00022499,4]
[330809183,1719815442374,-2607.03,0.00022499,4]
[330809184,1719815442383,-2607.03,0.00022499,4]
[330809185,1719815442392,-2607.03,0.00022499,4]
[330809186,1719815442401,-2607.03,0.00022499,4]
[330809187,1719815442411,-2607.03,0.00022499,4]
[330809188,1719815442420,-2607.03,0.00022499,4]
[330809189,1719815442430,-2607.03,0.00022499,4]
[330809190,1719815442439,-2607.03,0.00022499,4]
[330809191,1719815442448,-2607.03,0.00022499,4]
[330809192,1719815442457,-2607.03,0.00022499,4]
[330809193,1719815442466,-2607.03,0.00022499,4]
[330809194,1719815442475,-2607.03,0.00022499,4]
[330809195,1719815442485,-2607.03,0.00022499,4]
[330809196,1719815442494,-2607.03,0.00022499,4]
[330809197,1719815442503,-2607.03,0.00022499,4]
[330809198,1719815442512,-2607.03,0.00022499,4]
[330809199,1719815442521,-2607.14522464,0.00022499,4]
[330809200,1719815442530,-151.0,0.00022499,7]
[330809202,1719815442540,-151.0,0.00022499,7]
[330809203,1719815442549,-154.658133,0.00022499,7]
[330809204,1719815442558,-151.0,0.00022499,7]
[330809205,1719815442567,-151.0,0.00022499,7]
[330809206,1719815442576,-173.72078,0.00022499,7]
[330809207,1719815442585,-291.909552,0.00022499,7]
[330809208,1719815442594,-151.0,0.00022499,7]
[330809209,1719815442608,-500.0,0.00022499,4]
[330809210,1719815442617,-500.0,0.00022499,4]
[330809211,1719815442626,-500.0,0.00022499,4]
[330809212,1719815442635,-151.0,0.00022499,7]
[330809213,1719815442647,-500.0,0.00022499,4]
[330809214,1719815442657,-500.0,0.00022499,4]
[330809215,1719815442666,-500.0,0.00022499,4]
[330809216,1719815442675,-500.0,0.00022499,4]
[330809217,1719815442686,-500.0,0.00022499,4]
[330809218,1719815442696,-380.29,0.00022499,4]
[330809219,1719815442705,-151.0,0.00022499,7]
[330809220,1719815442715,-151.703353,0.00022499,7]
[330809221,1719815442723,-171.677144,0.00022499,7]
[330809222,1719815442732,-825.01,0.00022499,4]
[330809223,1719815442742,-825.01,0.00022499,4]
[330809224,1719815442751,-825.01,0.00022499,4]
[330809225,1719815442759,-171.677144,0.00022499,7]
[330809226,1719815442768,-825.01,0.00022499,4]
[330809227,1719815442778,-489.282281,0.00022499,7]
[330809228,1719815442787,-825.01,0.00022499,4]
[330809229,1719815442796,-151.0,0.00022499,7]
[330809230,1719815442806,-825.01,0.00022499,4]
[330809231,1719815442816,-825.01,0.00022499,4]
[330809232,1719815442825,-825.01,0.00022499,4]
[330809233,1719815442834,-151.0,0.00022499,7]
[330809234,1719815442843,-825.01,0.00022499,4]
[330809236,1719815442852,-825.01,0.00022499,4]
[330809238,1719815442862,-489.282281,0.00022499,7]
[330809240,1719815442871,-825.01,0.00022499,4]
[330809242,1719815442880,-155.209664,0.00022499,7]
[330809244,1719815442889,-825.01,0.00022499,4]
[330809246,1719815442898,-825.01,0.00022499,4]
[330809248,1719815442907,-154.33052,0.00022499,7]
[330809249,1719815442917,-825.01,0.00022499,4]
[330809250,1719815442926,-825.01,0.00022499,4]
[330809251,1719815442935,-825.01,0.00022499,4]
[330809252,1719815442944,-151.0,0.00022499,7]
[330809253,1719815442954,-825.15448835,0.00022499,4]
[330809254,1719815442963,-151.0,0.00022499,7]
[330809255,1719815442972,-767.08899,0.00022499,2]
[330809256,1719815442981,-151.0,0.00022499,7]
[330809257,1719815442990,-151.0,0.00022499,7]
[330809258,1719815442999,-151.0,0.00022499,7]
[330809259,1719815443008,-151.0,0.00022499,7]
[330809260,1719815443017,-151.0,0.00022499,7]
[330809261,1719815443026,-152.477747,0.00022499,7]
[330809262,1719815443035,-2351.89,0.00022499,4]
[330809263,1719815443044,-2351.89,0.00022499,4]
[330809264,1719815443053,-2351.89,0.00022499,4]
[330809265,1719815443063,-2351.89,0.00022499,4]
[330809266,1719815443072,-2351.89,0.00022499,4]
[330809267,1719815443081,-2351.89,0.00022499,4]
[330809268,1719815443091,-2351.89,0.00022499,4]
[330809269,1719815443133,-2351.89,0.00022499,4]
[330809270,1719815443143,-2351.89,0.00022499,4]
[330809271,1719815443153,-151.0,0.00022499,7]
[330809272,1719815443162,-2351.89,0.00022499,4]
[330809273,1719815443172,-2753.87,0.00022499,4]
[330809274,1719815443181,-2753.87,0.00022499,4]
[330809275,1719815443190,-2753.87,0.00022499,4]
[330809276,1719815443201,-2351.89,0.00022499,4]
[330809277,1719815443211,-2753.87,0.00022499,4]
[330809278,1719815443220,-2753.87,0.00022499,4]
[330809279,1719815443231,-2351.89,0.00022499,4]
[330809280,1719815443240,-2351.89,0.00022499,4]
[330809281,1719815443250,-2753.87,0.00022499,4]
[330809282,1719815443261,-2753.87,0.00022499,4]
[330809283,1719815443271,-2753.87,0.00022499,4]
[330809284,1719815443280,-2753.87,0.00022499,4]
[330809285,1719815443289,-2351.89,0.00022499,4]
[330809286,1719815443298,-2753.87,0.00022499,4]
[330809287,1719815443307,-2753.87,0.00022499,4]
[330809288,1719815443316,-2753.87,0.00022499,4]
[330809289,1719815443327,-2351.89,0.00022499,4]
[330809290,1719815443336,-2753.87,0.00022499,4]
[330809291,1719815443346,-2753.87,0.00022499,4]
[330809292,1719815443356,-2351.89,0.00022499,4]
[330809293,1719815443365,-2753.87,0.00022499,4]
[330809294,1719815443374,-2753.9664703,0.00022499,4]
[330809295,1719815443383,-2351.89,0.00022499,4]
[330809296,1719815443392,-2351.89,0.00022499,4]
[330809298,1719815443402,-2351.89,0.00022499,4]
[330809300,1719815443411,-2351.89,0.00022499,4]
[330809301,1719815443421,-2351.89,0.00022499,4]
[330809302,1719815443430,-2351.89,0.00022499,4]
[330809304,1719815443440,-2352.04,0.00022499,4]
[330809306,1719815443449,-151.0,0.00022499,7]
[330809307,1719815443457,-151.0,0.00022499,7]
[330809308,1719815443466,-151.0,0.00022499,7]
[330809309,1719815443475,-151.0,0.00022499,7]
[330809310,1719815443484,-151.0,0.00022499,7]
[330809311,1719815443493,-151.0,0.00022499,7]
[330809312,1719815443502,-151.0,0.00022499,7]
[330809313,1719815443510,-151.0,0.00022499,7]
[330809314,1719815443519,-151.0,0.00022499,7]
[330809315,1719815443528,-151.0,0.00022499,7]
[330809316,1719815443537,-151.0,0.00022499,7]
[330809317,1719815443546,-151.0,0.00022499,7]
[330809318,1719815443555,-151.0,0.00022499,7]
[330809319,1719815443564,-151.0,0.00022499,7]
[330809320,1719815443573,-2511.8,0.00022499,4]
[330809321,1719815443583,-3061.9,0.00022499,4]
[330809322,1719815443592,-2511.8,0.00022499,4]
[330809323,1719815443603,-3061.9,0.00022499,4]
[330809324,1719815443615,-151.0,0.00022499,7]
[330809325,1719815443623,-2881.055798,0.00022499,7]
[330809326,1719815443632,-3061.9,0.00022499,4]
[330809327,1719815443643,-2511.8,0.00022499,4]
[330809328,1719815443653,-151.0,0.00022499,7]
[330809329,1719815443662,-2511.8,0.00022499,4]
[330809330,1719815443671,-3061.9,0.00022499,4]
[330809331,1719815443681,-3061.9,0.00022499,4]
[330809332,1719815443690,-2511.8,0.00022499,4]
[330809333,1719815443698,-2881.055798,0.00022499,7]
[330809334,1719815443707,-3061.9,0.00022499,4]
[330809335,1719815443716,-2511.8,0.00022499,4]
[330809336,1719815443725,-3061.9,0.00022499,4]
[330809337,1719815443734,-3061.9,0.00022499,4]
[330809338,1719815443743,-2511.8,0.00022499,4]
[330809339,1719815443752,-3061.9,0.00022499,4]
[330809340,1719815443761,-151.0,0.00022499,7]
[330809341,1719815443770,-151.0,0.00022499,7]
[330809342,1719815443778,-3061.9,0.00022499,4]
[330809343,1719815443787,-2511.8,0.00022499,4]
[330809344,1719815443796,-3061.9,0.00022499,4]
[330809345,1719815443805,-2511.8,0.00022499,4]
[330809346,1719815443814,-3061.9,0.00022499,4]
[330809347,1719815443823,-2511.8,0.00022499,4]
[330809348,1719815443832,-3061.9,0.00022499,4]
[330809349,1719815443841,-2511.8,0.00022499,4]
[330809350,1719815443850,-3061.9,0.00022499,4]
[330809351,1719815443859,-2511.8,0.00022499,4]
[330809352,1719815443868,-2511.8,0.00022499,4]
[330809353,1719815443876,-3061.9,0.00022499,4]
[330809354,1719815443885,-3061.9,0.00022499,4]
[330809355,1719815443894,-3061.9,0.00022499,4]
[330809356,1719815443903,-2511.8,0.00022499,4]
[330809357,1719815443912,-3062.13,0.00022499,4]
[330809358,1719815443922,-2511.8,0.00022499,4]
[330809359,1719815443930,-2511.8,0.00022499,4]
[330809360,1719815443939,-2511.8,0.00022499,4]
[330809361,1719815443948,-151.0,0.00022499,7]
[330809362,1719815443957,-2511.8,0.00022499,4]
[330809363,1719815443967,-2511.8,0.00022499,4]
[330809364,1719815443976,-2511.8,0.00022499,4]
[330809365,1719815443986,-2511.8,0.00022499,4]
[330809366,1719815443996,-2511.8,0.00022499,4]
[330809367,1719815444006,-2511.8,0.00022499,4]
[330809368,1719815444015,-151.0,0.00022499,7]
[330809369,1719815444024,-2082.7,0.00022499,4]
[330809370,1719815444033,-2082.7,0.00022499,4]
[330809371,1719815444043,-2082.7,0.00022499,4]
[330809372,1719815444052,-2082.7,0.00022499,4]
[330809373,1719815444063,-2082.7,0.00022499,4]
[330809374,1719815444072,-2082.7,0.00022499,4]
[330809375,1719815444082,-2082.7,0.00022499,4]
[330809376,1719815444093,-2082.7,0.00022499,4]
[330809377,1719815444104,-2082.7,0.00022499,4]
[330809378,1719815444113,-2082.7,0.00022499,4]
[330809379,1719815444122,-2082.7,0.00022499,4]
[330809380,1719815444133,-2082.7,0.00022499,4]
[330809381,1719815444142,-2082.7,0.00022499,4]
[330809382,1719815444153,-2082.7,0.00022499,4]
[330809383,1719815444162,-2082.7,0.00022499,4]
[330809384,1719815444173,-2082.7,0.00022499,4]
[330809385,1719815444182,-2082.7,0.00022499,4]
[330809386,1719815444192,-2082.865,0.00022499,4]
[330809387,1719815444205,-2013.87,0.00022499,4]
[330809388,1719815444214,-2013.87,0.00022499,4]
[330809389,1719815444223,-2013.87,0.00022499,4]
[330809390,1719815444233,-2013.87,0.00022499,4]
[330809391,1719815444242,-2013.87,0.00022499,4]
[330809392,1719815444251,-2013.87,0.00022499,4]
[330809393,1719815444260,-2013.87,0.00022499,4]
[330809394,1719815444269,-2013.87,0.00022499,4]
[330809395,1719815444278,-2013.87,0.00022499,4]
[330809396,1719815444287,-2013.87,0.00022499,4]
[330809397,1719815444297,-2013.87,0.00022499,4]
[330809398,1719815444307,-2013.87,0.00022499,4]
[330809399,1719815444317,-2013.87,0.00022499,4]
[330809400,1719815444326,-2014.03348189,0.00022499,4]
[330809401,1719815444335,-264.92706061,0.00022499,2]
[330809402,1719815444344,-469562.14636774,0.000225,7]
[330809403,1719815444353,-2109.56897768,0.000225,5]
[330809404,1719815444362,-568247.44036401,0.000225,120]
[330809405,1719815444380,-14984.39808015,0.000225,120]
[330809406,1719815444472,-250.0,0.00020089,2]
[330809407,1719815444482,-5075.95611187,0.000225,120]
[330809408,1719815444492,-137400.0,0.000225,120]
[330809409,1719815444503,-406.24944498,0.000225,120]
[330809410,1719815444513,-8486029.61557839,0.000225,120]
[330809411,1719815444522,-807672.99797403,0.000225,120]
[330809412,1719815444531,-2000.0,0.000225,2]
[330809413,1719815444540,-4068957.70022647,0.000225,120]
[330809414,1719815444548,-1086437.22017731,0.000225,120]
[330809415,1719815444559,-128733.40585834,0.000225,120]
[330809416,1719815444567,-511132.16804939,0.000225,120]
[330809417,1719815444579,-143900.2474838,0.000225,120]
[330809418,1719815444589,-2873.71452217,0.000225,120]
[330809419,1719815444602,-691.31999944,0.000225,120]
[330809420,1719815444614,-311.50355214,0.000225,120]
[330809421,1719815444722,-173.41389264,0.00019352,2]
[330809422,1719815444731,-327.16438361,0.00022211,2]
[330809423,1719815444739,-686.07052464,0.000225,120]
[330809424,1719815444750,-582.39236919,0.000225,120]
[330809425,1719815444761,-378.42145,0.000225,120]
[330809426,1719815444772,-2348.06516434,0.000225,120]
[330809427,1719815444782,-1900.24289999,0.000225,120]
[330809428,1719815444793,-4003.50300215,0.000225,120]
[330809429,1719815444804,-179850.85826915,0.000225,120]
[330809430,1719815444815,-11778.53769657,0.000225,120]
[330809431,1719815444830,-2872.20525129,0.000225,120]
[330809432,1719815444845,-812.31370672,0.000225,120]
[330809433,1719815444858,-1356.30670095,0.000225,120]
[330809434,1719815444869,-1803.24107835,0.000225,120]
[330809435,1719815444881,-453.999994,0.000225,120]
[330809436,1719815444892,-1353.54549367,0.000225,120]
[330809437,1719815444903,-187404.95085643,0.000225,120]
[330809438,1719815444913,-4223.88782054,0.000225,120]
[330809439,1719815444929,-6299.402726,0.000225,120]
[330809440,1719815444939,-4859.22515269,0.000225,120]
[330809441,1719815444949,-13621.33321001,0.000225,120]
[330809442,1719815444960,-4975.0199998,0.000225,120]
[330809443,1719815444974,-284.54746564,0.000225,120]
[330809444,1719815444984,-7053.221239,0.000225,120]
[330809445,1719815444995,-883.25918109,0.000225,120]
[330809446,1719815445006,-2841.01708454,0.000225,120]
[330809447,1719815445017,-411.63357934,0.000225,120]
[330809448,1719815445028,-1178.20238861,0.000225,120]
[330809449,1719815445038,-1006.632,0.000225,120]
[330809450,1719815445049,-766.30912962,0.000225,120]
[330809451,1719815445060,-2415.7180157,0.000225,120]
[330809452,1719815445071,-342.3,0.000225,120]
[330809453,1719815445082,-820.72343352,0.000225,120]
[330809454,1719815445093,-434.55824995,0.000225,120]
[330809455,1719815445104,-643.65507974,0.000225,120]
[330809456,1719815445124,-250.0,0.000225,120]
[330809457,1719815445138,-845.50957208,0.000225,120]
[330809458,1719815445149,-312.16935958,0.000225,120]
[330809462,1719815445890,-254.86173603,0.000225,120]
[330809463,1719815445902,-21615.85428932,0.000225,120]
[330809464,1719815445913,-8539.06885841,0.000225,120]
[330809465,1719815445927,-8922.83961422,0.000225,120]
[330809466,1719815445937,-3963.59598511,0.000225,120]
[330809467,1719815445948,-569.64,0.000225,120]
[330809468,1719815446158,-1708.64273095,0.000225,120]
[330809469,1719815446169,-714.2364726,0.000225,120]
[330809470,1719815446181,-1517.8319108,0.000225,120]
[330809471,1719815446194,-687.57361666,0.000225,120]
[330809472,1719815446210,-4952.48764898,0.000225,120]
[330809473,1719815446220,-17849.13358637,0.000225,120]
[330809474,1719815446231,-2564.02335288,0.000225,120]
[330809475,1719815446242,-468.68885309,0.000225,120]
[330809476,1719815446254,-1144.6138646,0.000225,120]
[330809477,1719815446265,-325.95661418,0.000225,120]
[330809478,1719815446317,-5031.30663456,0.000225,120]
[330809480,1719815534709,418006.24283244,0.00013999,2]
[330809481,1719815624559,212090.16092701,0.00014,2]
[330809482,1719815635746,5908.29454439,9e-05,2]
[330809484,1719815671300,14328.72565259,6.94e-05,2]
[330809485,1719815742453,3631.58591848,0.000112,2]
[330809491,1719816491567,1902.84188033,0.00011199,2]
[330809492,1719816496501,-230.0,0.000118,2]
[330809494,1719816568149,-300.0,0.00011799,2]
[330809495,1719816568169,-2537.6516,0.000118,2]
[330809505,1719816632164,-300.0,0.00011799,2]
[330809506,1719816632174,-2033.50701761,0.000118,2]
[330809507,1719816632187,-2207.40403079,0.000118,2]
[330809508,1719816632199,-1325.14524,0.000118,2]
[330809509,1719816632210,-2756.11977575,0.000118,2]
[330809510,1719816632224,-289.3455407,0.000118,2]
[330809511,1719816632324,-8451.95163365,0.000118,2]
[330809512,1719816632335,-159.85756079,0.0001197,2]
[330809513,1719816632345,-272.06,0.0001207,2]
[330809514,1719816632355,-150.0,0.00013049,2]
[330809515,1719816632365,-5025.73505541,0.0001305,2]
[330809516,1719816632374,-397.0,0.00013448,2]
[330809517,1719816632384,-463.02049998,0.00013516,2]
[330809518,1719816632393,-221.7900275,0.00013543,2]
[330809519,1719816632403,-250.0,0.00013702,2]
[330809520,1719816632412,-6957.23871223,0.0001387,2]
[330809521,1719816632422,-459.07,0.0001387,2]
[330809522,1719816632431,-2132.21,0.0001387,2]
[330809523,1719816632440,-499.99,0.0001387,2]
[330809524,1719816632450,-227.0716558,0.00013889,2]
[330809525,1719816632459,-220.24,0.0001389,3]
[330809526,1719816632469,-321.88,0.00013937,2]
[330809527,1719816632478,-184.43129771,0.0001399,2]
[330809528,1719816632487,-155.0,0.00013999,2]
[330809529,1719816632496,-23347.24142913,0.00014,2]
[330809530,1719816632508,-378.73,0.00014,2]
[330809531,1719816632520,-5849.06297211,0.00014,2]
[330809532,1719816632531,-5314.0001,0.00014,2]
[330809533,1719816632542,-131136.66755013,0.00014,2]
[330809534,1719816632554,-278.60878409,0.00014,2]
[330809535,1719816632566,-1115.8023317,0.00014,2]
[330809536,1719816632577,-3499.02376926,0.00014,2]
[330809537,1719816632588,-6250.5055144,0.00014,2]
[330809538,1719816632599,-603.38328281,0.00014,2]
[330809546,1719816638048,-384.2290936,0.000139,2]
[330809547,1719816638060,-255.53745705,0.000139,2]
[330809548,1719816638073,-885.18687483,0.000139,2]
[330809549,1719816638083,-158678.39756262,0.00014,2]
[330809550,1719816638094,-434.55000021,0.00014,2]
[330809551,1719816638107,-605.36557248,0.00014,2]
[330809552,1719816638318,-657.76259654,0.00014,2]
[330809553,1719816638330,-312.48323528,0.00014,2]
[330809554,1719816638350,-4207.32988912,0.00014,2]
[330809555,1719816638362,-12621.05524752,0.00014,2]
[330809556,1719816638374,-2109.83826179,0.00014,2]
[330809557,1719816638386,-3715.37155532,0.00014,2]
[330809558,1719816638402,-335792.085814,0.00014,2]
[330809559,1719816638414,-2726.77650109,0.00014,2]
[330809560,1719816638426,-3191.41997605,0.00014,2]
[330809561,1719816638438,-2674.86820285,0.00014,2]
[330809562,1719816638454,-1777.0,0.00014,2]
[330809563,1719816640790,-720.66350876,0.00014,2]
[330809564,1719816640803,-6999.76712525,0.00014,2]
[330809565,1719816641047,-1104.33346155,0.00014,2]
[330809582,1719816643079,-1717.6694461,0.00014,2]
[330809583,1719816643091,-2265.676649,0.00014,2]
[330809585,1719816643248,-931.59745099,0.00014,2]
[330809586,1719816643260,-674.30950814,0.00014,2]
[330809587,1719816643271,-328.04999985,0.00014,2]
[330809603,1719816646290,-775.03337913,0.00014,2]
[330809617,1719817420221,264.40040348,0.00011199,2]
[330809642,1719817832406,-302.28,0.00012206,2]
[330809643,1719817832416,-530.9690438,0.00013128,2]
[330809644,1719817832427,-516.55578677,0.00013128,2]
[330809645,1719817832436,-284.58,0.00013297,2]
[330809646,1719817832446,-496.1,0.00013658,2]
[330809647,1719817832455,-250.0,0.00013763,2]
[330809648,1719817832464,-280.84,0.00013852,2]
[330809649,1719817832474,-261.58122686,0.00013889,2]
[330809650,1719817832483,-150.0,0.00013899,2]
[330809651,1719817832492,-377.15482869,0.000139,2]
[330809652,1719817832502,-188.66683658,0.000139,2]
[330809653,1719817832511,-198.55456855,0.000139,2]
[330809654,1719817832521,-6269.9971546,0.000139,2]
[330809655,1719817832530,-1801.33407474,0.000139,2]
[330809656,1719817832542,-992.71520429,0.000139,2]
[330809657,1719817832551,-200.41764912,0.0001399,2]
[330809658,1719817832562,-499.99,0.00013999,2]
[330809659,1719817832573,-3868.99,0.00013999,2]
[330809660,1719817832587,-1415.52,0.00013999,2]
[330809661,1719817832596,-227.0716558,0.00013999,2]
[330809662,1719817832605,-566958.63310276,0.00014,2]
[330809696,1719817838882,-711.3682374,0.00014,2]
[330809697,1719817838895,-63459.00000001,0.00014,2]
[330809698,1719817838908,-527.3426415,0.00014,2]
[330809699,1719817839216,-84390.9334169,0.00014,2]
[330809747,1719817840660,-578.06080476,0.00014,2]
[330809748,1719817840674,-840.77658634,0.00014,2]
[330809749,1719817840686,-4635.26919767,0.00014,2]
[330809750,1719817840697,-17160.4602514,0.00014,2]
[330809751,1719817840708,-911.31397884,0.00014,2]
[330809752,1719817840719,-3325.0,0.00014,2]
[330809753,1719817840731,-1960.0,0.00014,2]
[330809754,1719817840918,-175777.97682511,0.00014,2]
[330809757,1719817840930,-27568.56319972,0.00014,2]
[330809759,1719817840941,-1986.34492326,0.00014,2]
[330809761,1719817840952,-2212.89456905,0.00014,2]
[330809763,1719817840963,-1441.34242949,0.00014,2]
[330809765,1719817840975,-2041.39395642,0.00014,2]
[330809766,1719817840986,-844.59940527,0.00014,2]
[330809767,1719817840997,-3591.1465459,0.00014,2]
[330809773,1719817843304,-40.20750077,0.00014,2]
[330809774,1719817843316,-109010.80518224,0.00014,2]
[330809779,1719817843555,-377.97950241,0.00014,2]
[330809780,1719817843773,-374.87678314,0.00014,2]
[330809788,1719817846568,-1361.88681,0.00014,2]
[330809806,1719818598462,156.04144622,0.00011199,2]
[330809809,1719818726512,329.34,0.0001112,2]
[330809812,1719818866476,37166.34408161,0.00011199,2]
[330809814,1719818982039,1398.36172563,0.00011199,2]
[330809821,1719819033830,-217.96300349,0.00012384,2]
[330809822,1719819033840,-1782.03699651,0.00012481,2]
[330809823,1719819033852,-500.33300349,0.00012481,2]
[330809824,1719819033865,-250.0,0.00012484,2]
[330809825,1719819033874,-300.0,0.00012494,2]
[330809826,1719819033883,-2795.20917438,0.00012495,2]
[330809827,1719819033895,-1623.28971584,0.00012495,2]
[330809828,1719819034034,-597.34227907,0.00012495,2]
[330809829,1719819034048,-18309.38427015,0.00012495,2]
[330809830,1719819034059,-10985.84652715,0.00012495,2]
[330809841,1719819038656,-2809.54623438,0.00012495,2]
[330809842,1719819040736,-73795.60197286,0.00012495,2]
[330809843,1719819040748,-1446.5272,0.00012495,2]
[330809844,1719819040760,-485.49,0.00012495,2]
[330809845,1719819040927,-133956.82938917,0.00012495,2]
[330809846,1719819040937,-607.52,0.00012495,2]
[330809847,1719819040947,-169.72,0.00012573,2]
[330809848,1719819040956,-23850.0,0.00012831,2]
[330809849,1719819040966,-250.0,0.00012875,2]
[330809850,1719819040975,-5886.47,0.00012903,2]
[330809851,1719819040987,-1393.12,0.00012904,2]
[330809852,1719819040997,-46139.68,0.00012925,2]
[330809853,1719819041006,-1012.69,0.00013006,2]
[330809854,1719819041016,-1000.0,0.00013015,2]
[330809855,1719819041026,-200.0,0.00013021,2]
[330809856,1719819041039,-1744.55,0.00013021,2]
[330809857,1719819041048,-999.99,0.00013021,2]
[330809858,1719819041058,-1609.36,0.0001305,2]
[330809859,1719819041067,-158.47,0.00013114,2]
[330809860,1719819041077,-169.6,0.00013123,2]
[330809861,1719819041088,-150.0,0.00013224,2]
[330809862,1719819041098,-329.34,0.00013384,2]
[330809863,1719819041107,-499.99,0.00013386,2]
[330809864,1719819041117,-178.72,0.00013414,2]
[330809865,1719819041126,-500.0,0.000135,2]
[330809866,1719819041137,-2238.595092,0.0001358,2]
[330809867,1719819041146,-2238.59509199,0.0001358,2]
[330809868,1719819041155,-291.29,0.00013679,2]
[330809869,1719819041165,-544.95,0.00013699,2]
[330809870,1719819041174,-280.84,0.00013699,2]
[330809871,1719819041184,-162.86,0.00013699,2]